bitfinex-derivatives/quotes_BNBF0:USTF0_20250329
["timestamp","ask_amount","ask_price","bid_price","bid_amount"]
[1743243223384,6.40389431,606.89,606.36,0.26966085]
[1743243223578,6.40389431,606.88,606.36,0.26966085]
[1743243223777,6.40389431,606.87,606.36,0.26966085]
[1743243223977,6.40389431,606.86,606.36,0.26966085]
[1743243224286,6.40389431,606.85,606.36,0.26966085]
[1743243224583,6.40389431,606.84,606.37,1.23499871]
[1743243224781,6.40389431,606.83,606.38,0.26966085]
[1743243224979,6.40389431,606.82,606.38,0.26966085]
[1743243225182,5.9093495,606.81,606.38,0.26966085]
[1743243225380,5.9093495,606.8,606.38,0.26966085]
[1743243225586,5.9093495,606.79,606.38,0.26966085]
[1743243225780,3.75552827,606.78,606.38,0.26966085]
[1743243226085,2.78383231,606.81,606.38,0.26966085]
[1743243226086,3.75552827,606.77,606.38,0.26966085]
[1743243226282,3.75552827,606.76,606.37,1.23499871]
[1743243226585,2.27282673,606.75,606.38,0.26951447]
[1743243226786,3.34353146,606.74,606.38,1.42251447]
[1743243226986,2.27282673,606.73,606.39,0.26951447]
[1743243227181,0.92669205,606.72,606.39,0.26951447]
[1743243227380,3.75647814,606.71,606.39,0.26951447]
[1743243227586,2.27326414,606.7,606.39,0.26951447]
[1743243227787,2.27326414,606.69,606.39,0.26951447]
[1743243227983,2.27326414,606.68,606.39,0.26951447]
[1743243228188,2.27326414,606.67,606.39,1.50451318]
[1743243228388,2.27326414,606.66,606.4,0.26951447]
[1743243228580,0.92669205,606.65,606.4,0.26951447]
[1743243228786,0.92669205,606.64,606.4,0.26951447]
[1743243228985,0.92669205,606.63,606.4,0.26951447]
[1743243229181,1.07070473,606.65,606.4,0.26951447]
[1743243229386,0.92723168,606.64,606.4,0.26951447]
[1743243229583,0.92723168,606.63,606.4,0.26951447]
[1743243229888,0.92718421,606.62,606.39,1.23499871]
[1743243230092,1.07070473,606.64,606.4,0.26962166]
[1743243230290,1.07070473,606.61,606.4,0.26962166]
[1743243230987,1.07070473,606.61,606.39,0.26962166]
[1743243231291,1.63826342,606.89,606.39,0.26962166]
[1743243231589,9.1940278,606.88,606.39,0.26962166]
[1743243231786,6.40826167,606.87,606.39,0.26962166]
[1743243231984,6.40826167,606.86,606.38,1.153]
[1743243232187,6.40826167,606.85,606.38,1.153]
[1743243232390,6.40826167,606.84,606.38,1.153]
[1743243232583,6.40826167,606.83,606.38,1.153]
[1743243232784,6.40826167,606.82,606.38,1.153]
[1743243232989,6.40826167,606.81,606.38,1.153]
[1743243233191,6.40847434,606.8,606.38,1.153]
[1743243233489,6.408806,606.79,606.38,1.153]
[1743243233685,6.40880236,606.78,606.38,1.153]
[1743243233990,6.40880767,606.77,606.38,1.153]
[1743243234192,6.40880767,606.76,606.38,1.153]
[1743243234386,6.40880767,606.75,606.38,1.153]
[1743243234584,5.91442085,606.74,606.38,1.153]
[1743243234785,6.40883981,606.73,606.38,1.153]
[1743243234985,5.91442085,606.72,606.39,0.26967812]
[1743243235191,5.91442085,606.71,606.39,0.26967812]
[1743243235387,5.91442085,606.7,606.39,0.26967812]
[1743243235590,2.27477725,606.69,606.4,1.23]
[1743243235793,2.27477725,606.68,606.41,0.26967812]
[1743243235987,2.27477725,606.67,606.41,0.26967812]
[1743243236189,2.27519878,606.66,606.41,1.67667812]
[1743243236390,1.99884994,606.65,606.42,0.26967812]
[1743243236590,0.92740143,606.64,606.42,0.26967812]
[1743243236887,1.07144851,606.65,606.42,0.26967812]
[1743243237192,1.99929349,606.64,606.42,0.26967812]
[1743243237392,1.07144851,606.64,606.42,0.26967812]
[1743243237794,1.07144851,606.63,606.42,0.26967812]
[1743243238293,1.63826342,606.9,606.42,0.26967812]
[1743243238493,6.41169099,606.89,606.42,0.26967812]
[1743243238790,6.41169099,606.88,606.42,0.26967812]
[1743243239096,6.41169099,606.87,606.42,0.26967812]
[1743243239394,6.41168055,606.86,606.42,0.26967812]
[1743243239594,6.41168055,606.85,606.42,0.26967812]
[1743243239792,6.41168055,606.84,606.42,0.26967812]
[1743243239990,6.41168055,606.83,606.42,0.26967812]
[1743243240192,6.41168055,606.82,606.42,0.26967812]
[1743243240390,6.41168055,606.81,606.42,0.26967812]
[1743243240591,6.41168055,606.8,606.42,0.26967812]
[1743243240790,6.41168055,606.79,606.42,0.26967812]
[1743243240992,6.41168055,606.78,606.42,0.26967812]
[1743243241296,5.91732879,606.77,606.42,0.26967812]
[1743243241495,5.91732879,606.76,606.42,0.26967812]
[1743243241690,5.91732879,606.75,606.42,0.26967812]
[1743243241894,5.91732879,606.74,606.42,0.26967812]
[1743243242093,5.91732879,606.73,606.42,0.26967812]
[1743243242294,5.91732879,606.72,606.42,0.26967812]
[1743243242494,5.91732879,606.71,606.42,0.26967812]
[1743243242697,5.91732879,606.7,606.42,0.26967812]
[1743243242897,3.76054692,606.69,606.42,0.26967812]
[1743243243198,3.76054692,606.68,606.42,0.26967812]
[1743243243396,3.76054692,606.67,606.42,0.26967812]
[1743243243599,2.27589569,606.66,606.42,0.26967812]
[1743243243798,2.27589569,606.65,606.42,0.26967812]
[1743243243998,2.27589569,606.64,606.42,0.26967812]
[1743243244198,2.27589569,606.63,606.42,0.26967812]
[1743243244398,2.27589569,606.62,606.42,0.26967812]
[1743243244698,0.92831572,606.61,606.42,0.26967812]
[1743243244997,0.92831572,606.6,606.42,0.26967812]
[1743243245198,0.92831572,606.59,606.41,1.407]
[1743243245399,1.07212233,606.62,606.42,0.26962798]
[1743243245599,0.92840644,606.61,606.41,1.407]
[1743243245898,1.07212233,606.58,606.42,0.26961875]
[1743243246301,1.07212233,606.57,606.42,0.26961875]
[1743243246901,1.63826342,606.91,606.42,0.26961875]
[1743243247104,6.41514156,606.9,606.43,0.26959073]
[1743243247310,6.41514156,606.89,606.42,0.26959073]
[1743243247608,6.41514156,606.88,606.43,0.26959073]
[1743243247808,6.41514156,606.87,606.42,0.26959073]
[1743243248109,6.41514156,606.86,606.42,0.26959073]
[1743243248307,6.41514156,606.85,606.42,0.26959073]
[1743243248503,6.41514156,606.84,606.42,0.26959073]
[1743243248709,6.41514156,606.83,606.41,1.69385298]
[1743243248907,6.41514156,606.82,606.42,0.26957035]
[1743243249104,6.41514156,606.81,606.42,0.26957035]
[1743243249307,6.41514156,606.8,606.42,1.91557035]
[1743243249507,6.41514156,606.79,606.43,0.26957035]
[1743243249707,6.41514156,606.78,606.43,0.26957035]
[1743243249907,6.41514156,606.77,606.43,0.26957035]
[1743243250106,6.41514156,606.76,606.43,0.26957035]
[1743243250310,6.4151379,606.75,606.43,0.26957035]
[1743243250509,5.92078117,606.74,606.44,0.26958]
[1743243250703,2.78919849,606.77,606.43,0.26958]
[1743243250904,2.78919849,606.74,606.43,0.26958]
[1743243251104,3.76304334,606.73,606.42,2.88099871]
[1743243251408,3.76304334,606.72,606.42,2.88099871]
[1743243251609,3.76304334,606.71,606.42,4.18199871]
[1743243251808,3.76304334,606.7,606.43,0.26955627]
[1743243252010,2.27740709,606.69,606.48,1.23499871]
[1743243252205,2.27740709,606.68,606.48,1.23499871]
[1743243252407,2.27740709,606.67,606.48,1.23499871]
[1743243252607,2.27740709,606.66,606.48,1.23499871]
[1743243252803,2.27740379,606.65,606.48,1.23499871]
[1743243253010,0.92851935,606.64,606.48,1.23499871]
[1743243253306,0.92851935,606.63,606.48,1.23499871]
[1743243253511,1.07276865,606.64,606.48,1.23499871]
[1743243253711,0.92848729,606.63,606.48,1.23499871]
[1743243254010,1.07276865,606.62,606.43,1.23499871]
[1743243254205,1.07276865,606.62,606.44,0.26940589]
[1743243254710,1.07276865,606.61,606.44,0.26940589]
[1743243255606,1.63826342,606.96,606.44,0.26940589]
[1743243255811,6.41519854,606.95,606.44,0.26940589]
[1743243256013,6.41519854,606.94,606.44,0.26940589]
[1743243256206,6.41519854,606.93,606.44,0.26940589]
[1743243256410,6.41519854,606.92,606.44,0.26940589]
[1743243256612,6.41519854,606.91,606.44,0.26940589]
[1743243256813,6.41519854,606.9,606.44,0.26940589]
[1743243257011,6.41519854,606.89,606.44,0.26940589]
[1743243257210,6.41519854,606.88,606.44,0.26940589]
[1743243257406,6.41519854,606.87,606.43,1.23499871]
[1743243257612,6.41519854,606.86,606.44,0.26933188]
[1743243257813,6.41519854,606.85,606.44,0.26933188]
[1743243258114,6.41519854,606.84,606.44,0.26933188]
[1743243258315,6.41519854,606.83,606.44,0.26933188]
[1743243258514,2.78916329,606.85,606.44,0.26933188]
[1743243258515,6.41519854,606.82,606.44,0.26933188]
[1743243258710,6.41519854,606.81,606.44,0.26933188]
[1743243258917,5.92086709,606.8,606.44,0.26933188]
[1743243259110,5.92086709,606.79,606.47,1.23499871]
[1743243259307,5.92086709,606.78,606.48,0.2693127]
[1743243259511,5.92086709,606.77,606.48,0.2693127]
[1743243259712,5.92078246,606.76,606.48,0.2693127]
[1743243259914,3.7627932,606.75,606.48,0.2693127]
[1743243260110,3.7627932,606.74,606.48,0.2693127]
[1743243260312,3.7627932,606.73,606.48,0.2693127]
[1743243260614,3.7627932,606.72,606.48,0.2693127]
[1743243260815,2.27723863,606.71,606.48,0.2693127]
[1743243261015,2.27723863,606.7,606.49,0.26937664]
[1743243261215,2.27723863,606.69,606.49,0.26937664]
[1743243261415,2.78916329,606.72,606.47,1.23499871]
[1743243261416,2.27735059,606.68,606.5,0.26937664]
[1743243261616,0.92844245,606.67,606.48,0.26937664]
[1743243261810,0.92844245,606.66,606.48,0.26937664]
[1743243262015,1.07275511,606.68,606.48,0.26937664]
[1743243262210,0.92853291,606.67,606.48,0.26937664]
[1743243262413,2.00128802,606.66,606.48,0.26937664]
[1743243262610,0.92853291,606.65,606.48,0.26937664]
[1743243262812,1.07275511,606.66,606.48,0.26937664]
[1743243263011,1.07275511,606.64,606.48,0.26937664]
[1743243263416,1.07275511,606.63,606.49,0.2693795]
[1743243263816,1.07275511,606.63,606.47,1.23499871]
[1743243263817,1.07275511,606.63,606.48,0.2693795]
[1743243264013,1.07275511,606.63,606.42,2.947]
[1743243264014,1.07275511,606.63,606.52,1.23499871]
[1743243264219,1.07275511,606.63,606.53,0.2693795]
[1743243264919,1.63826342,606.91,606.53,0.2693795]
[1743243265117,6.41791863,606.9,606.53,0.2693795]
[1743243265418,6.41791863,606.89,606.53,0.2693795]
[1743243265619,6.41791863,606.88,606.53,0.2693795]
[1743243265818,6.41791863,606.87,606.53,0.2693795]
[1743243266016,6.41791863,606.86,606.53,0.2693795]
[1743243266218,6.41791863,606.85,606.53,0.2693795]
[1743243266419,6.41791863,606.84,606.53,1.4293795]
[1743243266619,6.41791863,606.83,606.54,0.2693795]
[1743243266816,6.41845075,606.82,606.55,1.23499871]
[1743243267022,5.9241583,606.81,606.55,1.23499871]
[1743243267222,5.9241583,606.8,606.55,1.23499871]
[1743243267516,5.9241583,606.79,606.55,1.23499871]
[1743243267720,5.9241583,606.78,606.55,1.23499871]
[1743243268023,0.98376837,607.0,606.55,1.23499871]
[1743243268024,3.7650849,606.77,606.55,1.23499871]
[1743243268219,3.7650849,606.76,606.55,1.23499871]
[1743243268421,3.7650849,606.75,606.55,1.23499871]
[1743243268720,2.79080206,606.76,606.55,1.23499871]
[1743243268721,3.7650849,606.74,606.55,1.23499871]
[1743243268921,2.27852242,606.73,606.55,1.23499871]
[1743243269117,2.27987311,606.72,606.55,1.23499871]
[1743243269319,2.27987311,606.71,606.55,1.23499871]
[1743243269616,2.27987311,606.7,606.55,1.23499871]
[1743243269823,2.27987311,606.69,606.55,1.23499871]
[1743243270016,2.27987311,606.68,606.55,1.23499871]
[1743243270220,0.92952453,606.67,606.53,1.16]
[1743243270421,0.92952453,606.66,606.53,1.16]
[1743243270721,0.92952453,606.65,606.53,1.16]
[1743243271021,0.92952453,606.64,606.53,1.16]
[1743243271221,1.07338541,606.66,606.53,1.16]
[1743243271420,1.63826342,606.96,606.53,1.16]
[1743243271421,1.07338541,606.64,606.53,1.16]
[1743243271615,0.93011214,606.63,606.53,1.16]
[1743243271813,1.07338541,606.63,606.53,1.16]
[1743243272521,0.93096665,606.62,606.53,1.16]
[1743243272721,0.93096665,606.61,606.53,1.16]
[1743243273022,1.07338541,606.62,606.53,1.16]
[1743243273320,2.00472847,606.61,606.53,1.16]
[1743243273519,0.93134306,606.6,606.53,1.16]
[1743243273719,1.07338541,606.61,606.53,1.16]
[1743243274318,1.07338541,606.6,606.53,1.16]
[1743243275223,1.07338541,606.59,606.53,1.16]
[1743243275823,0.93150457,606.58,606.53,1.16]
[1743243276024,1.07338541,606.59,606.53,1.16]
[1743243276222,2.28483408,606.58,606.53,1.16]
[1743243276523,2.28483408,606.57,606.53,1.16]
[1743243276724,0.93151446,606.56,606.53,1.16]
[1743243276926,0.93151446,606.55,606.53,1.16]
[1743243277125,0.93151446,606.54,606.53,1.16]
[1743243277325,2.00489987,606.54,606.53,1.16]
[1743243279322,1.07338541,606.54,606.53,1.16]
[1743243280827,1.63826342,606.97,606.53,1.16]
[1743243281025,6.4363719,606.96,606.53,1.16]
[1743243281226,6.4363719,606.95,606.53,1.16]
[1743243281426,6.4363719,606.94,606.53,1.16]
[1743243281627,6.4363719,606.93,606.53,1.16]
[1743243281823,6.4363719,606.92,606.53,1.16]
[1743243282025,6.4363719,606.91,606.53,1.16]
[1743243282228,2.79917033,606.95,606.53,1.16]
[1743243282229,6.4363719,606.9,606.53,1.16]
[1743243282424,6.4363719,606.89,606.53,1.16]
[1743243282628,6.4363719,606.88,606.53,1.16]
[1743243282923,6.4363719,606.87,606.53,1.16]
[1743243283129,6.4363719,606.86,606.53,1.16]
[1743243283324,6.4363719,606.85,606.53,1.16]
[1743243283524,6.4363719,606.84,606.53,1.16]
[1743243283729,6.4363719,606.83,606.53,1.16]
[1743243284030,6.4363719,606.82,606.53,1.16]
[1743243284226,6.4363719,606.81,606.53,1.16]
[1743243284431,9.23554223,606.8,606.53,1.16]
[1743243284729,5.9420513,606.79,606.53,1.16]
[1743243284930,5.9420513,606.78,606.53,1.16]
[1743243285123,5.94213819,606.77,606.53,1.16]
[1743243285327,6.43646017,606.76,606.53,1.16]
[1743243285530,5.94213819,606.75,606.54,0.26925898]
[1743243285727,5.94213819,606.74,606.54,0.26925898]
[1743243285929,5.94213819,606.73,606.54,0.26925898]
[1743243286123,5.94213819,606.72,606.54,0.26925898]
[1743243286327,5.94213819,606.71,606.54,0.26925898]
[1743243286528,3.77631044,606.7,606.54,0.26925898]
[1743243286727,3.77631044,606.69,606.54,0.26925898]
[1743243286925,2.28543776,606.68,606.54,0.26925898]
[1743243287130,2.28543776,606.67,606.54,0.26925898]
[1743243287330,4.45130843,606.66,606.54,0.26925898]
[1743243287528,5.94220982,606.65,606.54,0.26925898]
[1743243287725,5.94220982,606.64,606.54,0.26925898]
[1743243287926,3.77633915,606.63,606.54,0.26925898]
[1743243288127,3.77633915,606.62,606.54,0.26925898]
[1743243288328,3.77633915,606.61,606.54,0.26925898]
[1743243288529,2.28543776,606.6,606.54,0.26925898]
[1743243288730,2.28543776,606.59,606.54,0.26925898]
[1743243288927,2.28543776,606.58,606.54,0.26925898]
[1743243289126,2.2855449,606.57,606.54,0.26925898]
[1743243289328,0.93183912,606.56,606.54,0.26925898]
[1743243289527,0.93183912,606.55,606.54,0.26925898]
[1743243289730,0.93183912,606.55,606.53,1.16]
[1743243289926,0.93183912,606.54,606.53,1.16]
[1743243290528,2.00844309,606.54,606.5,0.28681752]
[1743243290834,0.93183912,606.53,606.52,1.23020589]
[1743243291233,2.00850161,606.53,606.52,1.23020589]
[1743243292335,2.00850161,606.53,606.52,1.49948418]
[1743243292936,2.00850161,606.53,606.52,0.26927829]
[1743243293632,2.00850161,606.53,606.51,1.23020589]
[1743243293834,1.07660397,606.53,606.51,1.23020589]
[1743243294736,1.07660397,606.52,606.51,1.23020589]
[1743243294935,1.07660397,606.52,606.51,1.49947316]
[1743243296437,1.63826342,606.83,606.51,1.49947316]
[1743243296637,6.43926049,606.82,606.52,0.26926727]
[1743243296837,6.43926049,606.81,606.52,0.26926727]
[1743243297038,6.43926049,606.8,606.52,0.26926727]
[1743243297233,6.4392599,606.79,606.51,1.23020589]
[1743243297436,6.4392599,606.79,606.52,0.26925214]
[1743243297437,6.4392599,606.78,606.52,0.26925214]
[1743243297632,6.4392599,606.77,606.51,0.26925214]
[1743243297833,6.4392599,606.76,606.52,0.26925214]
[1743243298038,6.4392599,606.75,606.52,1.206]
[1743243298334,6.4392599,606.74,606.53,0.26925214]
[1743243298533,6.4392599,606.73,606.52,1.206]
[1743243298737,5.94493827,606.72,606.52,1.206]
[1743243298936,5.94493827,606.71,606.52,1.206]
[1743243299133,5.94483305,606.7,606.52,1.206]
[1743243299338,5.94483305,606.69,606.52,1.206]
[1743243299538,8.74532378,606.68,606.52,1.206]
[1743243299734,3.77802048,606.67,606.52,1.206]
[1743243299933,2.28647425,606.66,606.53,0.26916355]
[1743243300239,2.28647425,606.65,606.53,0.26916355]
[1743243300538,0.93221639,606.64,606.53,0.26916355]
[1743243300733,0.93221639,606.63,606.52,1.206]
[1743243300934,0.93213025,606.62,606.53,0.26921371]
[1743243301238,1.07711182,606.62,606.53,0.26921371]
[1743243301438,1.07711182,606.62,606.57,1.23006363]
[1743243301638,1.07711182,606.61,606.57,1.23006363]
[1743243302742,0.98695663,606.92,606.57,1.23006363]
[1743243302936,7.42566112,606.91,606.57,1.23006363]
[1743243303235,1.63826342,606.89,606.57,1.23006363]
[1743243303441,6.43870449,606.88,606.57,1.23006363]
[1743243303635,6.43870449,606.87,606.57,1.23006363]
[1743243303838,6.43870449,606.86,606.57,1.23006363]
[1743243304039,6.43870449,606.85,606.57,1.23006363]
[1743243304240,6.43870449,606.84,606.57,1.23006363]
[1743243304441,6.43870449,606.83,606.57,1.23006363]
[1743243304641,6.43906874,606.82,606.57,1.23006363]
[1743243304838,6.43906874,606.81,606.57,1.23006363]
[1743243305034,6.43906874,606.8,606.57,1.23006363]
[1743243305238,6.43906874,606.79,606.58,0.269286]
[1743243305435,6.43906874,606.78,606.58,1.49934963]
[1743243305640,6.43906874,606.77,606.59,0.269286]
[1743243305840,5.94474464,606.76,606.6,0.26926115]
[1743243306037,5.94474464,606.75,606.59,0.26926115]
[1743243306342,5.94474464,606.74,606.59,0.26926115]
[1743243306543,3.77787179,606.73,606.59,0.26926115]
[1743243306838,3.77787179,606.72,606.59,0.26926115]
[1743243307044,3.77787179,606.71,606.59,0.26926115]
[1743243307235,3.77816356,606.7,606.59,0.26926115]
[1743243307437,2.28644024,606.69,606.59,0.26926115]
[1743243307639,2.80027485,606.69,606.68,1.23006363]
[1743243307839,5.08703475,606.69,606.68,1.23006363]
[1743243308838,3.7326075,606.69,606.68,1.23006363]
[1743243309042,2.80027485,606.69,606.68,1.23006363]
[1743243309544,2.43124228,606.69,606.68,1.23006363]
[1743243309840,3.36340833,606.69,606.55,0.28676671]
[1743243310040,2.28637954,606.68,606.56,0.26916456]
[1743243310240,2.28637954,606.67,606.56,0.26916456]
[1743243310441,0.93216605,606.66,606.56,0.26916456]
[1743243310644,0.93216605,606.65,606.56,0.26916456]
[1743243310944,0.93216605,606.64,606.56,0.26916456]
[1743243311144,1.07702879,606.64,606.56,0.26916456]
[1743243311443,1.07702879,606.63,606.56,0.26916456]
[1743243312044,1.63826342,606.92,606.56,0.26916456]
[1743243312239,6.43711652,606.91,606.55,0.2867927]
[1743243312441,6.43711652,606.9,606.55,0.2867927]
[1743243312638,6.43711652,606.89,606.56,0.26916456]
[1743243312842,6.43711652,606.88,606.56,0.26916456]
[1743243313041,6.43711652,606.87,606.56,0.26916456]
[1743243313240,6.43711652,606.86,606.56,0.26916456]
[1743243313441,6.43711652,606.85,606.56,1.40116456]
[1743243313645,6.43711652,606.84,606.57,0.26916456]
[1743243313840,6.43711652,606.83,606.57,0.26916456]
[1743243314045,6.43711652,606.82,606.57,0.26916456]
[1743243314245,5.94288827,606.81,606.57,0.26916456]
[1743243314539,5.94288827,606.8,606.57,0.26916456]
[1743243314745,5.94288827,606.79,606.57,0.26916456]
[1743243315041,5.94288827,606.78,606.57,0.26916456]
[1743243315244,3.77677594,606.77,606.61,1.22849527]
[1743243315439,2.28572626,606.76,606.62,0.26916456]
[1743243315642,2.28572626,606.75,606.62,0.26916456]
[1743243315845,2.28572626,606.74,606.63,0.26910308]
[1743243316048,2.28572626,606.73,606.62,0.26910308]
[1743243316243,2.28572626,606.72,606.63,0.26910308]
[1743243316442,0.93190605,606.71,606.64,0.26910308]
[1743243316645,0.93190605,606.7,606.65,0.26910308]
[1743243316842,1.07671287,606.72,606.62,0.26910308]
[1743243317048,1.07671287,606.72,606.63,0.26910308]
[1743243317248,1.07671287,606.72,606.62,0.26910308]
[1743243317446,1.07671287,606.71,606.62,0.26910308]
[1743243317951,1.07671287,606.71,606.61,0.26910308]
[1743243318152,1.07671287,606.71,606.63,0.26910308]
[1743243318351,1.63826342,607.07,606.64,0.26910308]
[1743243318546,6.43161478,607.06,606.61,0.26910308]
[1743243318749,6.43161478,607.05,606.61,0.26910308]
[1743243318946,6.43161478,607.04,606.61,0.26910308]
[1743243319150,6.43161478,607.03,606.61,0.26910308]
[1743243319350,6.43161478,607.02,606.61,0.26910308]
[1743243319553,6.43161478,607.01,606.61,0.26910308]
[1743243319751,6.43161478,607.0,606.61,0.26910308]
[1743243319951,6.43161478,606.99,606.61,0.26910308]
[1743243320147,2.79684374,607.01,606.64,1.22849527]
[1743243320148,6.43161478,606.98,606.64,1.22849527]
[1743243320352,6.43161478,606.97,606.65,0.26910308]
[1743243320550,5.93747442,606.96,606.65,0.26910308]
[1743243320751,5.93586753,606.95,606.65,0.26910308]
[1743243320946,5.93586753,606.94,606.66,0.26900986]
[1743243321153,3.77270709,606.93,606.66,0.26900986]
[1743243321353,3.77270709,606.92,606.66,0.26900986]
[1743243321553,3.77270709,606.91,606.66,0.26900986]
[1743243321754,2.28302597,606.9,606.66,0.26900986]
[1743243321951,2.28302597,606.89,606.66,0.26900986]
[1743243322154,2.28302597,606.88,606.66,0.26900986]
[1743243322353,0.9310507,606.87,606.66,0.26900986]
[1743243322660,0.9310507,606.86,606.69,1.22849527]
[1743243322860,2.79684374,606.9,606.7,0.26900986]
[1743243323060,1.07570913,606.86,606.7,0.26900986]
[1743243323855,1.63826342,607.26,606.7,0.26900986]
[1743243324062,6.42339048,607.25,606.7,0.26900986]
[1743243324259,6.42339048,607.24,606.7,0.26900986]
[1743243324453,6.42339048,607.23,606.7,0.26900986]
[1743243324656,1.63826342,607.21,606.7,0.26900986]
[1743243324955,6.42203612,607.2,606.7,0.26900986]
[1743243325161,6.42203612,607.19,606.7,0.26900986]
[1743243325357,7.40833031,607.18,606.7,0.26900986]
[1743243325558,0.98629419,607.16,606.7,0.26900986]
[1743243325762,6.42203612,607.15,606.7,0.26900986]
[1743243325956,6.42203612,607.14,606.7,0.26900986]
[1743243326155,6.42203612,607.13,606.7,0.26900986]
[1743243326360,6.42203612,607.12,606.7,0.26900986]
[1743243326663,5.9279829,607.11,606.75,1.22849527]
[1743243326862,5.9279829,607.1,606.76,0.26900986]
[1743243327162,3.76762283,607.09,606.76,0.26900986]
[1743243327363,3.76762283,607.08,606.76,0.26900986]
[1743243327556,3.76762283,607.07,606.76,0.26900986]
[1743243327759,2.27999342,607.06,606.76,0.26900986]
[1743243327955,2.27999342,607.05,606.76,0.26900986]
[1743243328156,2.27999342,607.04,606.76,0.26900986]
[1743243328360,2.27999342,607.03,606.76,0.26900986]
[1743243328659,2.27999342,607.02,606.76,0.26900986]
[1743243328857,0.92976838,607.01,606.7,0.26900986]
[1743243329054,0.92976838,607.0,606.71,0.26900986]
[1743243329256,1.07378089,607.01,606.72,0.26900986]
[1743243329455,0.92801441,607.0,606.7,0.26900986]
[1743243329662,0.92802212,606.99,606.71,0.26896064]
[1743243329962,1.07378089,607.0,606.72,0.26896064]
[1743243330263,1.07378089,607.0,606.69,1.575]
[1743243330264,1.07378089,607.0,606.73,0.26896064]
[1743243330558,1.07378089,606.99,606.74,0.26896064]
[1743243330761,1.07378089,606.99,606.71,0.26896064]
[1743243331062,1.07378089,606.98,606.72,0.26896064]
[1743243331263,1.07378089,606.98,606.73,0.26896064]
[1743243331462,1.07378089,606.98,606.71,0.26896064]
[1743243331660,1.63826342,607.34,606.72,0.26896064]
[1743243331962,6.40963277,607.33,606.73,0.26896064]
[1743243332164,6.40963277,607.32,606.73,0.26896064]
[1743243332363,6.40963277,607.31,606.74,0.26896064]
[1743243332564,6.40963277,607.3,606.71,0.26896064]
[1743243332765,6.40963277,607.29,606.75,0.26896064]
[1743243333064,2.78639779,607.33,606.69,1.575]
[1743243333065,6.40857906,607.28,606.76,0.26896064]
[1743243333263,6.40857906,607.27,606.7,0.26896064]
[1743243333461,6.40857906,607.26,606.72,0.28663325]
[1743243333665,6.40857906,607.25,606.73,0.26896064]
[1743243333966,5.91453432,607.24,606.73,0.26896064]
[1743243334165,5.91453432,607.23,606.73,0.26896064]
[1743243334366,5.91453432,607.22,606.73,0.26896064]
[1743243334566,5.91453432,607.21,606.73,0.26896064]
[1743243334866,3.75714169,607.2,606.73,0.26896064]
[1743243335062,3.75714169,607.19,606.74,0.26896182]
[1743243335261,3.75714169,607.18,606.75,0.26896182]
[1743243335465,3.75714169,607.17,606.76,0.26896182]
[1743243335665,2.27410626,607.16,606.73,0.26896182]
[1743243335969,2.27410626,607.15,606.74,0.26896182]
[1743243336169,2.27410626,607.14,606.75,0.26896182]
[1743243336367,2.27410626,607.13,606.73,0.28664978]
[1743243336667,2.27410626,607.12,606.74,0.26896182]
[1743243336871,1.07169146,607.13,606.74,0.26896182]
[1743243336872,0.92689714,607.11,606.74,0.26896182]
[1743243337069,0.92689714,607.1,606.74,0.26896182]
[1743243337272,1.07169146,607.13,606.74,0.26896182]
[1743243337468,1.07169146,607.1,606.74,0.26896182]
[1743243337869,1.07169146,607.09,606.74,0.26896182]
[1743243338367,1.63826342,607.44,606.74,0.26896182]
[1743243338564,6.4017035,607.43,606.74,0.26896182]
[1743243338767,6.4017035,607.42,606.74,0.26896182]
[1743243339070,6.40170349,607.41,606.74,0.26896182]
[1743243339267,6.40170349,607.4,606.74,0.26896182]
[1743243339465,6.40170349,607.39,606.75,0.26896182]
[1743243339666,6.40170349,607.38,606.74,0.26896182]
[1743243339868,6.40170349,607.37,606.74,0.26896182]
[1743243340065,6.40170349,607.36,606.74,0.26896182]
[1743243340270,6.40170349,607.35,606.74,0.26896182]
[1743243340571,6.40170349,607.34,606.74,0.26896182]
[1743243340872,6.40160123,607.33,606.74,0.26896182]
[1743243341067,6.40160123,607.32,606.74,0.26896182]
[1743243341268,3.76337936,607.36,606.74,0.26896182]
[1743243341269,6.40160123,607.31,606.74,0.26896182]
[1743243341573,6.40160123,607.3,606.74,0.26896182]
[1743243341773,6.40160123,607.29,606.74,0.26896182]
[1743243341965,6.40160123,607.28,606.74,0.26896182]
[1743243342165,6.40160123,607.27,606.66,0.26896182]
[1743243342365,6.40160123,607.26,606.73,0.28665568]
[1743243342570,6.40160123,607.25,606.74,0.26896182]
[1743243342768,6.40160123,607.24,606.74,0.26896182]
[1743243342968,6.40160123,607.23,606.74,0.26896182]
[1743243343165,6.40160123,607.22,606.74,0.26896182]
[1743243343369,6.40160123,607.21,606.74,0.26896182]
[1743243343570,6.40160123,607.2,606.74,0.26896182]
[1743243343767,6.40160123,607.19,606.75,1.338]
[1743243343973,5.90755333,607.18,606.76,0.26896182]
[1743243344170,5.90755333,607.17,606.76,0.26896182]